Workbook

Sheet Index
B1: JEN 2024-25 - Labour Rates
B2: =IFERROR(MID(CELL("filename",A1),FIND("]",CELL("filename",A1))+1,255),"") -> Index | C2: Overall Check: | D2: ='Model Validation'!C4 -> 0
B5: Worksheet summary
B7: Worksheet name | C7: Check: | F7: Input required? | H7: Description
B9: ='Output|Labour Rates'!B2 -> Output|Labour Rates | C9: NA | F9: N | H9: Contains the caclulated price for labour rates.
B10: Input | Setup
B11: ='Input|Labour Rates'!B2 -> Input|Labour Rates | C11: ='Input|Labour Rates'!G1 -> 0 | F11: Y | H11: Input for labour cost components.
B12: ='Input|Escalations'!B2 -> Input|Escalations | C12: ='Input|Escalations'!G1 -> 0 | F12: Y | H12: Sets up the inflation and labour escalations.
B13: ='Input|Indirect Cost Rates'!B2 -> Input|Indirect Cost Rates | C13: ='Input|Indirect Cost Rates'!G1 -> NA | F13: Y | H13: Input for indirect cost rates.
B14: ='Calc|Labour Rates'!B2 -> Calc|Labour Rates | C14: NA | F14: N | H14: Calculation tables for labour rates.
B15: ='Model Validation'!B2 -> Model Validation | C15: ='Model Validation'!C14 -> NA | F15: N | H15: Checks and traces possible input errors.
B18: Table summary
B20: Name | C20: Tab | F20: Input required? | H20: Description
B21: ='Output|Labour Rates'!$B$4 -> 1.1 Labour Rates for 2024-25 | C21: =B9 -> Output|Labour Rates
B22: ='Input|Setup'!A5 & " " & 'Input|Setup'!B5 -> 2.1 Years setup | C22: =B10 -> Input | Setup | F22: Y | H22: Contains the cummary of calculate labour rates used to provide services for 2024-25.
B23: ='Input|Setup'!A10 & " " & 'Input|Setup'!B10 -> 2.2 Current regulatory period | C23: =$B$10 -> Input | Setup | F23: Y | H23: Contains the regulatory years of the current regulatory control period.
B24: ='Input|Setup'!D10 & " " & 'Input|Setup'!E10 -> 2.3 Forecast regulatory period | C24: Input | Setup | F24: Y | H24: Contains the regulatory years of the forthcoming regulatory control period.
B25: ='Input|Setup'!A19& " " & 'Input|Setup'!B19 -> 2.4 Hours | C25: Input | Setup | F25: Y | H25: Please enter time periods that would result in different rates applied for the same service or labour type (e.g. business hours, after hours).
B26: ='Input|Setup'!D19 & " " & 'Input|Setup'!E19 ->  | C26: Input | Setup | F26: Y | H26: Please list the assumptions factored into this model, for calculating the final labour rate.
B27: ='Input|Setup'!A25& " " & 'Input|Setup'!B25 -> 2.5 Labour type | C27: Input | Setup | F27: Y | H27: Please enter the specific labour types used to provide fee based and quoted services.
B28: ='Input|Setup'!D25 & " " & 'Input|Setup'!E25 -> 2.6 Expense Type | C28: Input | Setup | F28: Y | H28: Please enter distributor-specific categories for fee-based services, if required.
B29: ='Input|Setup'!G25 & " " & 'Input|Setup'!H25 -> 2.7 Control Mechanism | C29: Input | Setup | F29: Y | H29: Please enter distributor-specific categories for fee-based services, if required.
B30: ='Input|Labour Rates'!A5 & " " & 'Input|Labour Rates'!B5 -> 3.1 Labour Rates | C30: =$B$11 -> Input|Labour Rates | F30: Y | H30: Please enter required information regarding labour rates (in base year dollar terms) used to provide ANS. For on-cost and overhead rates, please use formulas to reference tables 5.1 and 5.2, respectively.
B31: ='Input|Labour Rates'!J5 -> 3.2 Notes and sources | C31: =$B$11 -> Input|Labour Rates | F31: Y | H31: Please describe "Other costs" used to derive total labour rates, where appropriate, and provide sources.
B32: ='Input|Labour Rates'!A21 & " " & 'Input|Labour Rates'!B21 -> 3.3 Assumptions | C32: =$B$11 -> Input|Labour Rates | F32: Y | H32: Please describe assumptions used to derive total labour rates, where appropriate, and provide sources.
B33: ='Input|Labour Rates'!J21 -> 3.4 Notes and sources | C33: =$B$11 -> Input|Labour Rates | F33: Y | H33: Please describe "Other costs" used to derive total labour rates, where appropriate, and provide sources.
B34: ='Input|Escalations'!A5 & " " & 'Input|Escalations'!B5 -> 4.1 Escalation setup | C34: =$B$12 -> Input|Escalations | F34: Y | H34: Please enter ABS index, all groups CPI inflation series A2325846C, up to latest available December. Please enter forecast CPI, including source, for other years.
B35: ='Input|Escalations'!A13 & " " & 'Input|Escalations'!B13 -> 4.2 Inflation | C35: =$B$12 -> Input|Escalations | F35: Y | H35: Calculates X factor (real wage price escalation). Other real escalators are set to equal X factor by default, but can be amended by distributors.
B36: ='Input|Escalations'!A20 & " " & 'Input|Escalations'!B20 -> 4.3 Real wage price escalation | C36: =$B$12 -> Input|Escalations | F36: Y | H36: Please enter sources and forecasts for real wage price escalation, including weightings for each source, in the green input cells. Grey cells will calculate the forecast real wage price escalation.
B37: ='Input|Indirect Cost Rates'!A5 & " " & 'Input|Indirect Cost Rates'!B5 -> 5.1 On costs | C37: =$B$13 -> Input|Indirect Cost Rates | F37: Y | H37: Please enter relevant on-cost rates. Distributors may enter a total on-cost rate only. Alternatively, disaggregated on-cost rates may be provided with the total on-cost rate calculated in row 19, as required.
B38: ='Input|Indirect Cost Rates'!A22 & " " & 'Input|Indirect Cost Rates'!B22 -> 5.2 Overheads | C38: =$B$13 -> Input|Indirect Cost Rates | F38: Y | H38: Please enter rates for network overhead and corporate overhead. Where relevant, distributors may enter other overhead rates (e.g. a total overhead rate).
B39: ='Input|Indirect Cost Rates'!A32 & " " & 'Input|Indirect Cost Rates'!B32 -> 5.3 Vehicle Allowance | C39: =$B$13 -> Input|Indirect Cost Rates | F39: N | H39: Please enter base vehicle allowance, if required.
B40: ='Calc|Labour Rates'!A5 & " " & 'Calc|Labour Rates'!B5 -> 6.1 Labour Rates ($2024-25) | C40: =$B$14 -> Calc|Labour Rates | F40: N | H40: Please enter required information regarding labour rates (in base year dollar terms) used to provide ACS. For on-cost and overhead rates, please use formulas to reference tables 5.1 and 5.2, respectively.
B41: ='Calc|Labour Rates'!G5 -> 6.2 Labour Rates Build up, $'s ($2024-25) | C41: =$B$14 -> Calc|Labour Rates | F41: N | H41: Calculates the base labour rates and factors in overheads, on costs, vehcle allowances, etc.

Sheet Input|Setup
B1: =IFERROR(Index!$B$1,0) -> JEN 2024-25 - Labour Rates | E1: Key: | F1: Input | H1: Sheet Validation | I1: 0
B2: =IFERROR(MID(CELL("filename",A1),FIND("]",CELL("filename",A1))+1,255),"") -> Input|Setup | F2: Formula
Q4: For AER only
A5: 2.1 | B5: Years setup | E5: Year | F5: =IF(COUNTA(E6:E7)=0,1,0) -> 0 | Q5: Years
B6: First year of forecast regulatory control period | E6: 2026-27 | Q6: 2016-17
B7: Base year for inputs | E7: 2024-25 | Q7: =LEFT(Q6,4)+1&"-"&RIGHT(Q6,2)+1 -> 2017-18
B8: Base year for outputs | E8: 2024-25 | Q8: 2018-19
Q9: 2019-20
A10: 2.2 | B10: Current regulatory period | D10: 2.3 | E10: Forecast regulatory period | Q10: 2020-21
A11: 1 | B11: =LEFT(B12,4)-1&"-"&RIGHT(B12,2)-1 -> 2021-22 | D11: 1 | E11: =E6 -> 2026-27 | Q11: 2021-22
A12: =A11+1 -> 2 | B12: =LEFT(B13,4)-1&"-"&RIGHT(B13,2)-1 -> 2022-23 | D12: =D11+1 -> 2 | E12: =LEFT(E11,4)+1&"-"&RIGHT(E11,2)+1 -> 2027-28 | Q12: 2022-23
A13: =A12+1 -> 3 | B13: =LEFT(B14,4)-1&"-"&RIGHT(B14,2)-1 -> 2023-24 | D13: =D12+1 -> 3 | E13: =LEFT(E12,4)+1&"-"&RIGHT(E12,2)+1 -> 2028-29 | Q13: 2023-24
A14: =A13+1 -> 4 | B14: =LEFT(B15,4)-1&"-"&RIGHT(B15,2)-1 -> 2024-25 | D14: =D13+1 -> 4 | E14: =LEFT(E13,4)+1&"-"&RIGHT(E13,2)+1 -> 2029-30 | Q14: 2024-25
A15: =A14+1 -> 5 | B15: =LEFT(E11,4)-1&"-"&RIGHT(E11,2)-1 -> 2025-26 | D15: =D14+1 -> 5 | E15: =LEFT(E14,4)+1&"-"&RIGHT(E14,2)+1 -> 2030-31 | Q15: 2025-26
Q16: 2026-27
Q17: 2027-28
Q18: 2028-29
A19: 2.4 | B19: Hours | C19: =IF(COUNTA(B20:B22)=0,1,0) -> 0 | Q19: 2034-35
B20: Business Hours
B21: After Hours
B22: Not Applicable
A25: 2.5 | B25: Labour type | C25: =IF(COUNTA(B26:B31)=0,1,0) -> 0 | D25: 2.6 | E25: Expense Type | F25: =IF(COUNTA(E26:E31)=0,1,0) -> 0 | G25: 2.7 | H25: Control Mechanism | I25: =IF(COUNTA(H26:H31)=0,1,0) -> 0
A26: 1 | B26: Administrative Officer | E26: Capex | H26: Fee Based
A27: =A26+1 -> 2 | B27: Field Worker | E27: Opex
A28: =A27+1 -> 3 | B28: Technical Specialist
A29: =A28+1 -> 4 | B29: Engineer
A30: =A29+1 -> 5 | B30: Senior Engineer
A31: =A30+1 -> 6

Sheet Input|Labour Rates
B1: =IFERROR(Index!B1,"") -> JEN 2024-25 - Labour Rates | D1: Key: | E1: Input | F1: Sheet Validation | G1: =SUM(I8:I18)+SUM(K8:K18)+SUM(K24:K30) -> 0
B2: =IFERROR(MID(CELL("filename",A1),FIND("]",CELL("filename",A1))+1,255),"") -> Input|Labour Rates | E2: Formula
A5: 3.1 | B5: Labour Rates | J5: 3.2 Notes and sources
B7: Labour category | C7: Hours | D7: ="Base labour rate ($" & 'Input|Setup'!E7 & ")" -> Base labour rate ($2024-25) | E7: ='Input|Indirect Cost Rates'!$B$5 &" (%)" -> On costs (%) | F7: ='Input|Indirect Cost Rates'!$B$22 & " (%)" -> Overheads (%)
A8: 1 | B8: Administrative Officer | C8: Business hours | D8: ='Calc|Labour Rates'!G8 -> 45.42426261 | E8: ='Input|Indirect Cost Rates'!$D$19 -> 0.4614814561 | F8: =SUM('Input|Indirect Cost Rates'!D26,'Input|Indirect Cost Rates'!D28) -> 0.610300578 | J8: Base labour rates are taken from Hays Salary Guide 2024-25 for Vic-Melbourne and applying the AER"s labour rate methodology
A9: =A8+1 -> 2 | B9: Field Worker | C9: Business hours | D9: ='Calc|Labour Rates'!G9 -> 68.48996344 | E9: ='Input|Indirect Cost Rates'!$E$19 -> 0.4921889093 | F9: =$F$8 -> 0.610300578 | J9: Base labour rates are taken from Hays Salary Guide 2022-23 (escalated to $2024-25) for Vic-Melbourne and applying the AER's labour rate methodology
A10: 3 | B10: Technical Specialist | C10: Business hours | D10: ='Calc|Labour Rates'!G10 -> 74.66528801 | E10: ='Input|Indirect Cost Rates'!$F$19 -> 0.4725469257 | F10: =$F$8 -> 0.610300578 | J10: Base labour rates are taken from Hays Salary Guide 2022-23 (escalated to $2024-25) for Vic-Melbourne and applying the AER's labour rate methodology
A11: 4 | B11: Engineer | C11: Business hours | D11: ='Calc|Labour Rates'!G11 -> 100.9428058 | E11: ='Input|Indirect Cost Rates'!$H$19 -> 0.4725469257 | F11: =$F$8 -> 0.610300578 | J11: Base labour rates are taken from Hays Salary Guide 2024-25 for Vic-Melbourne and applying the AER"s labour rate methodology
A12: 5 | B12: Senior Engineer | C12: Business hours | D12: ='Calc|Labour Rates'!G12 -> 121.131367 | E12: ='Input|Indirect Cost Rates'!$G$19 -> 0.4725469257 | F12: =$F$8 -> 0.610300578 | J12: Base labour rates are taken from Hays Salary Guide 2024-25 for Vic-Melbourne and applying the AER"s labour rate methodology
A13: 6 | B13: Administrative Officer | C13: After Hours | D13: 0 | E13: 0 | F13: 0 | J13: Base labour rates are taken from Hays Salary Guide 2024-25 for Vic-Melbourne and applying the AER"s labour rate methodology
A14: 7 | B14: Field Worker* | C14: After Hours | D14: ='Calc|Labour Rates'!$G$13 -> 158.8066793 | E14: ='Input|Indirect Cost Rates'!$I$19 -> 0.1932377352 | F14: =$F$8 -> 0.610300578 | J14: *Section 19.1 of the Fair Work Ombudsman, Electrical Power Industry Award 2020
A15: 8 | B15: Technical Specialist | C15: After Hours | D15: 0 | E15: 0 | F15: 0
A16: 9 | B16: Engineer | C16: After Hours | D16: 0 | E16: 0 | F16: 0
A17: 10 | B17: Senior Engineer | C17: After Hours | D17: 0 | E17: 0 | F17: 0
A18: 11
A21: 3.3 | B21: Assumptions | J21: 3.4 Notes and sources
C23: Administrative officer,Technical Specialist,Engineer, Senior Engineer | D23: Field Worker (BH) | E23: Field Worker (AH)
B24: Overhead rate | C24: =SUM('Input|Indirect Cost Rates'!D26:D27) -> 0.610300578 | D24: =$C$24 -> 0.610300578 | E24: =$C$24 -> 0.610300578 | J24: Based on Network and Corporate overhead percentages in the Input|Indirect Cost Rates tab
B25: On-costs | C25: ='Input|Indirect Cost Rates'!D19 -> 0.4614814561 | D25: ='Input|Indirect Cost Rates'!E19 -> 0.4921889093 | E25: ='Input|Indirect Cost Rates'!I19 -> 0.1932377352 | J25: Based on cost percentages in the Input|Indirect Cost Rates tab
B28: Weeks | C28: 52.14 | J28: Review of ancillary network service: CitiPower, Poweror, Imoted Energy, Jemen and Ausnet - Advice to AER 30 Jun 2020. A Mardson Jacob Report
B29: Hours per week | C29: 38 | J29: Review of ancillary network service: CitiPower, Poweror, Imoted Energy, Jemen and Ausnet - Advice to AER 30 Jun 2020. A Mardson Jacob Report
B30: Wage Measure Stickiness | C30: 0.025 | J30: Review of ancillary network service: CitiPower, Poweror, Imoted Energy, Jemen and Ausnet - Advice to AER 30 Jun 2020. A Mardson Jacob Report

Sheet Input|Escalations
B1: ='Input|Setup'!$B$1 -> JEN 2024-25 - Labour Rates | C1: Key: | D1: Input | F1: Sheet Validation | G1: 0
B2: =IFERROR(MID(CELL("filename",A1),FIND("]",CELL("filename",A1))+1,255),"") -> Input|Escalations | D2: Formula
A5: 4.1 | B5: Escalation setup
C7: Year
B8: First year of forecast regulatory control period | C8: 2026-27
B9: Base year for inputs | C9: 2024-25
B10: Base year for outputs | C10: 2024-25
A13: 4.2 | B13: Inflation | E13: Current regulatory period | J13: Forecast regulatory period | O13: =IF(COUNTA(B14:N17)=0,1,0) -> 0
D15: Jan21-Jun21 | E15: =IFERROR((LEFT(F15,4)-1&IF(MID(F15,5,1)="","","-"&TEXT(MOD(MID(F15,6,2)-1,100),"00"))),"") -> 2021-22 | F15: =IFERROR((LEFT(G15,4)-1&IF(MID(G15,5,1)="","","-"&TEXT(MOD(MID(G15,6,2)-1,100),"00"))),"") -> 2022-23 | G15: =IFERROR((LEFT(H15,4)-1&IF(MID(H15,5,1)="","","-"&TEXT(MOD(MID(H15,6,2)-1,100),"00"))),"") -> 2023-24 | H15: =IFERROR((LEFT(I15,4)-1&IF(MID(I15,5,1)="","","-"&TEXT(MOD(MID(I15,6,2)-1,100),"00"))),"") -> 2024-25 | I15: =IFERROR((LEFT(J15,4)-1&IF(MID(J15,5,1)="","","-"&TEXT(MOD(MID(J15,6,2)-1,100),"00"))),"") -> 2025-26 | J15: =$C$8 -> 2026-27 | K15: =IFERROR((LEFT(J15,4)+1&IF(MID(J15,5,1)="","","-"&TEXT(MOD(MID(J15,6,2)+1,100),"00"))),"") -> 2027-28 | L15: =IFERROR((LEFT(K15,4)+1&IF(MID(K15,5,1)="","","-"&TEXT(MOD(MID(K15,6,2)+1,100),"00"))),"") -> 2028-29 | M15: =IFERROR((LEFT(L15,4)+1&IF(MID(L15,5,1)="","","-"&TEXT(MOD(MID(L15,6,2)+1,100),"00"))),"") -> 2029-30 | N15: =IFERROR((LEFT(M15,4)+1&IF(MID(M15,5,1)="","","-"&TEXT(MOD(MID(M15,6,2)+1,100),"00"))),"") -> 2030-31
B16: CPI year on year change (%) - lagged one year (actual/estimate) | D16: 0.01219512195 | E16: 0.008605851979 | F16: 0.03498293515 | G16: 0.07831821929 | H16: 0.04051987768 | I16: 0.026 | J16: 0.025 | K16: 0.025 | L16: 0.025 | M16: 0.025 | N16: 0.025
B17: Cumulative Inflation Index | F17: 1 | G17: =IFERROR(F17*(1+G16),"") -> 1.078318219 | H17: 1.122011542 | I17: 1.151183842 | J17: 1.179963438 | K17: 1.209462524 | L17: 1.239699087 | M17: 1.270691564 | N17: 1.302458853
A20: 4.3 | B20: Real wage price escalation | E20: Current regulatory period | J20: Forecast regulatory period
D22: =$D$15 -> Jan21-Jun21 | E22: =IFERROR((LEFT(F22,4)-1&IF(MID(F22,5,1)="","","-"&TEXT(MOD(MID(F22,6,2)-1,100),"00"))),"") -> 2021-22 | F22: =IFERROR((LEFT(G22,4)-1&IF(MID(G22,5,1)="","","-"&TEXT(MOD(MID(G22,6,2)-1,100),"00"))),"") -> 2022-23 | G22: =IFERROR((LEFT(H22,4)-1&IF(MID(H22,5,1)="","","-"&TEXT(MOD(MID(H22,6,2)-1,100),"00"))),"") -> 2023-24 | H22: =IFERROR((LEFT(I22,4)-1&IF(MID(I22,5,1)="","","-"&TEXT(MOD(MID(I22,6,2)-1,100),"00"))),"") -> 2024-25 | I22: =IFERROR((LEFT(J22,4)-1&IF(MID(J22,5,1)="","","-"&TEXT(MOD(MID(J22,6,2)-1,100),"00"))),"") -> 2025-26 | J22: =$C$8 -> 2026-27 | K22: =IFERROR((LEFT(J22,4)+1&IF(MID(J22,5,1)="","","-"&TEXT(MOD(MID(J22,6,2)+1,100),"00"))),"") -> 2027-28 | L22: =IFERROR((LEFT(K22,4)+1&IF(MID(K22,5,1)="","","-"&TEXT(MOD(MID(K22,6,2)+1,100),"00"))),"") -> 2028-29 | M22: =IFERROR((LEFT(L22,4)+1&IF(MID(L22,5,1)="","","-"&TEXT(MOD(MID(L22,6,2)+1,100),"00"))),"") -> 2029-30 | N22: =IFERROR((LEFT(M22,4)+1&IF(MID(M22,5,1)="","","-"&TEXT(MOD(MID(M22,6,2)+1,100),"00"))),"") -> 2030-31
B23: Labour - Real wage price growth | D23: =SUM((D28*D34),(D29*D35),(D30*D36),(D31*D37)) -> 0.004943119988 | E23: -0.02812040787 | F23: -0.04374835876 | G23: =SUM((G28*G34),(G29*G35),(G30*G36),(G31*G37)) -> -0.01509360982 | H23: 0.006536312907 | I23: 0.007201031134 | J23: 0.009313524394 | K23: 0.008358355629 | L23: 0.01025499053 | M23: 0.01224018808 | N23: 0.01148235304
B24: Cumulative Labour - Wage price growth index | D24: =1+D23 -> 1.00494312 | E24: =IFERROR(D24*(1+E23),"") -> 0.9766837096 | F24: =1+F23 -> 0.9562516412 | G24: 0.9418183521 | H24: 0.9479743715 | I24: 0.9548007645 | J24: 0.9636933247 | K24: 0.9717482162 | L24: 0.981713485 | M24: 0.9937298427 | N24: 1.0051402
B25: Escalate from 2022-23 to 2024-25 | G25: =G24/$F$24 -> 0.9849063902 | H25: =H24/$F$24 -> 0.9913440465 | I25: 0.9984827459 | J25: 1.007782139 | K25: 1.016205541 | L25: 1.026626719 | M25: 1.039192823 | N25: 1.051125202
B27: Forecast/Source | D27: =$D$15 -> Jan21-Jun21 | E27: =IFERROR((LEFT(F27,4)-1&IF(MID(F27,5,1)="","","-"&TEXT(MOD(MID(F27,6,2)-1,100),"00"))),"") -> 2021-22 | F27: =IFERROR((LEFT(G27,4)-1&IF(MID(G27,5,1)="","","-"&TEXT(MOD(MID(G27,6,2)-1,100),"00"))),"") -> 2022-23 | G27: =IFERROR((LEFT(H27,4)-1&IF(MID(H27,5,1)="","","-"&TEXT(MOD(MID(H27,6,2)-1,100),"00"))),"") -> 2023-24 | H27: =IFERROR((LEFT(I27,4)-1&IF(MID(I27,5,1)="","","-"&TEXT(MOD(MID(I27,6,2)-1,100),"00"))),"") -> 2024-25 | I27: =IFERROR((LEFT(J27,4)-1&IF(MID(J27,5,1)="","","-"&TEXT(MOD(MID(J27,6,2)-1,100),"00"))),"") -> 2025-26 | J27: =$C$8 -> 2026-27 | K27: =IFERROR((LEFT(J27,4)+1&IF(MID(J27,5,1)="","","-"&TEXT(MOD(MID(J27,6,2)+1,100),"00"))),"") -> 2027-28 | L27: =IFERROR((LEFT(K27,4)+1&IF(MID(K27,5,1)="","","-"&TEXT(MOD(MID(K27,6,2)+1,100),"00"))),"") -> 2028-29 | M27: =IFERROR((LEFT(L27,4)+1&IF(MID(L27,5,1)="","","-"&TEXT(MOD(MID(L27,6,2)+1,100),"00"))),"") -> 2029-30 | N27: =IFERROR((LEFT(M27,4)+1&IF(MID(M27,5,1)="","","-"&TEXT(MOD(MID(M27,6,2)+1,100),"00"))),"") -> 2030-31 | O27: =IF(COUNTA(B28:N31)=0,1,0) -> 0
B28: WPI - Oxford Economics actual and forecast October 2024 | D28: 0.004943119988 | E28: -0.02812040787 | F28: -0.04374835876 | G28: -0.01509360982 | H28: 0.006536312907 | I28: 0.007201031134
B29: WPI - DAE forecast (placeholder from Ergon Report) AUS | J29: 0.007 | K29: 0.007 | L29: 0.008 | M29: 0.011 | N29: 0.011
B30: WPI - Oxford Economics forecast October 2024 | J30: 0.01162704879 | K30: 0.009716711258 | L30: 0.01250998106 | M30: 0.01348037617 | N30: 0.01196470609
B33: Weights (per cent) | D33: =$D$15 -> Jan21-Jun21 | E33: =IFERROR((LEFT(F33,4)-1&IF(MID(F33,5,1)="","","-"&TEXT(MOD(MID(F33,6,2)-1,100),"00"))),"") -> 2021-22 | F33: =IFERROR((LEFT(G33,4)-1&IF(MID(G33,5,1)="","","-"&TEXT(MOD(MID(G33,6,2)-1,100),"00"))),"") -> 2022-23 | G33: =IFERROR((LEFT(H33,4)-1&IF(MID(H33,5,1)="","","-"&TEXT(MOD(MID(H33,6,2)-1,100),"00"))),"") -> 2023-24 | H33: =IFERROR((LEFT(I33,4)-1&IF(MID(I33,5,1)="","","-"&TEXT(MOD(MID(I33,6,2)-1,100),"00"))),"") -> 2024-25 | I33: =IFERROR((LEFT(J33,4)-1&IF(MID(J33,5,1)="","","-"&TEXT(MOD(MID(J33,6,2)-1,100),"00"))),"") -> 2025-26 | J33: =$C$8 -> 2026-27 | K33: =IFERROR((LEFT(J33,4)+1&IF(MID(J33,5,1)="","","-"&TEXT(MOD(MID(J33,6,2)+1,100),"00"))),"") -> 2027-28 | L33: =IFERROR((LEFT(K33,4)+1&IF(MID(K33,5,1)="","","-"&TEXT(MOD(MID(K33,6,2)+1,100),"00"))),"") -> 2028-29 | M33: =IFERROR((LEFT(L33,4)+1&IF(MID(L33,5,1)="","","-"&TEXT(MOD(MID(L33,6,2)+1,100),"00"))),"") -> 2029-30 | N33: =IFERROR((LEFT(M33,4)+1&IF(MID(M33,5,1)="","","-"&TEXT(MOD(MID(M33,6,2)+1,100),"00"))),"") -> 2030-31 | O33: =IF(COUNTA(E34:N37)=0,1,0) -> 0
B34: =B28 -> WPI - Oxford Economics actual and forecast October 2024 | D34: 1 | E34: 1 | F34: 1 | G34: 1 | H34: 1 | I34: 1
B35: =B29 -> WPI - DAE forecast (placeholder from Ergon Report) AUS | J35: 0.5 | K35: 0.5 | L35: 0.5 | M35: 0.5 | N35: 0.5
B36: =B30 -> WPI - Oxford Economics forecast October 2024 | J36: 0.5 | K36: 0.5 | L36: 0.5 | M36: 0.5 | N36: 0.5
B37: =B31 -> 0
D38: =IF(OR(SUM(D34:D37)=0,SUM(D34:D37)=1),0,1) -> 0 | E38: 0 | F38: 0 | G38: 0 | H38: 0 | I38: 0 | J38: 0 | K38: 0 | L38: 0 | M38: 0 | N38: 0 | O38: =IF(SUM(E38:N38)=0,0,1) -> 0

Sheet Input|Indirect Cost Rates
B1: ='Input|Setup'!$B$1 -> JEN 2024-25 - Labour Rates | C1: Key: | D1: Input | F1: Sheet Validation | G1: NA
B2: =IFERROR(MID(CELL("filename",A1),FIND("]",CELL("filename",A1))+1,255),"") -> Input|Indirect Cost Rates | D2: Formula
A5: 5.1 | B5: On costs
B7: On cost drivers | C7: Unit | D7: Administrative Officer (BH) | E7: Field Worker (BH) | F7: Technical Specialist (BH) | G7: Senior Engineer (BH) | H7: Engineer (BH) | I7: Field Worker (AH) | J7: Notes
B8: Standard leave (annual leave, sick leave, public holidays) | C8: Per cent | D8: 0.1715 | E8: 0.1878 | F8: 0.1715 | G8: 0.1715 | H8: 0.1715 | I8: 0 | J8: Source: Sections 17, 20 and 26 of Jemena Asset Management Enterprise Agreement (Vic) 2021
B9: Superannuation | C9: Per cent | D9: 0.12 | E9: 0.12 | F9: 0.12 | G9: 0.12 | H9: 0.12 | I9: 0.12 | J9: Source: Section 19(2) of the Superannuation Guarantee (Administration) Act 1992.
B10: Workcover Insurance | C10: Per cent | D10: 0.00651 | E10: 0.00651 | F10: 0.00651 | G10: 0.00651 | H10: 0.00651 | I10: 0.00651 | J10: Source: Workcover Premiums Order No.32 2024/25
B11: Payroll tax | C11: Per cent | D11: 0.0585 | E11: 0.0585 | F11: 0.0585 | G11: 0.0585 | H11: 0.0585 | I11: 0.0585 | J11: Source: State Revenue Office https://www.sro.vic.gov.au/payroll-tax
B12: Annual leave loading | C12: Per cent | D12: 0.02 | E12: 0.02 | F12: 0.02 | G12: 0.02 | H12: 0.02 | I12: 0 | J12: Source: Section 17.7 of Jemena Asset Management Enterprise Agreement (Vic) 2021
B13: Long Service leave allowance | C13: Per cent | D13: 0.025 | E13: 0.025 | F13: 0.025 | G13: 0.025 | H13: 0.025 | I13: 0 | J13: Source: Section 19.1 of Jemena Asset Management Enterprise Agreement (Vic) 2021
B14: Non-chargeable time | C14: Per cent | D14: 0 | E14: 0 | F14: 0 | G14: 0 | H14: 0 | I14: 0
B15: Other | C15: Per cent | D15: 0 | E15: 0 | F15: 0 | G15: 0 | H15: 0 | I15: 0
B16: Allowances | C16: Per cent | D16: 0 | E16: 0.007 | F16: 0 | G16: 0 | H16: 0 | I16: 0 | J16: Source: Section 36 of Jemena Asset Management Enterprise Agreement (Vic) 2021
B17: Training & Development | C17: Per cent | D17: 0 | E17: 0 | F17: 0.007571406072 | G17: 0.007571406072 | H17: 0.007571406072 | I17: 0 | J17: Source: Section 39 of Jemena Asset Management Enterprise Agreement (Vic) 2021
B18: Safety Meetings/Toolbox Talks | C18: Per cent
B19: Compounded on cost factor | C19: Per cent | D19: =PRODUCT(1+D8:D17)-1 -> 0.4614814561 | E19: =PRODUCT(1+E8:E17)-1 -> 0.4921889093 | F19: =PRODUCT(1+F8:F17)-1 -> 0.4725469257 | G19: =PRODUCT(1+G8:G17)-1 -> 0.4725469257 | H19: =PRODUCT(1+H8:H17)-1 -> 0.4725469257 | I19: =PRODUCT(1+I8:I17)-1 -> 0.1932377352
A22: 5.2 | B22: Overheads
B24: Type of Overhead | C24: Unit | D24: Input | E24: Type | F24: Notes
B25: Network Overhead | C25: Per cent | D25: 0.2093290404 | E25: Capex | F25: Marden Jacob Associates, Review of ancillary network services: CitiPower, Powercor, United Energy, Jemena and AusNet, Advice to the Australian Energy Regulator, 30 Jun 2020
B26: Network Overhead | C26: Per cent | D26: 0.2093290404 | E26: Opex | F26: Marden Jacob Associates, Review of ancillary network services: CitiPower, Powercor, United Energy, Jemena and AusNet, Advice to the Australian Energy Regulator, 30 Jun 2020
B27: Corporate Overhead | C27: Per cent | D27: 0.4009715377 | E27: Capex | F27: Marden Jacob Associates, Review of ancillary network services: CitiPower, Powercor, United Energy, Jemena and AusNet, Advice to the Australian Energy Regulator, 30 Jun 2020
B28: Corporate Overhead | C28: Per cent | D28: 0.4009715377 | E28: Opex | F28: Marden Jacob Associates, Review of ancillary network services: CitiPower, Powercor, United Energy, Jemena and AusNet, Advice to the Australian Energy Regulator, 30 Jun 2020
C29: Per cent
A32: 5.3 | B32: Vehicle Allowance | G32: =IFERROR("9.2 Year 1 labour rates build up, $'s ($"&#REF!&")","") ->  | H32: =IFERROR("9.2 Year 1 labour rates build up, $'s ($"&#REF!&")","") ->  | I32: =IFERROR("9.2 Year 1 labour rates build up, $'s ($"&#REF!&")","") ->  | J32: =IFERROR("9.2 Year 1 labour rates build up, $'s ($"&#REF!&")","") ->  | K32: =IFERROR("9.2 Year 1 labour rates build up, $'s ($"&#REF!&")","") ->  | L32: =IFERROR("9.2 Year 1 labour rates build up, $'s ($"&#REF!&")","") -> 
B34: Vehicle r costs | C34: Notes | G34: ($Jan21-Jun21) | H34: ='Input|Escalations'!E15 -> 2021-22 | I34: ='Input|Escalations'!F15 -> 2022-23 | J34: ='Input|Escalations'!G15 -> 2023-24 | K34: ='Input|Escalations'!H15 -> 2024-25
B35: Vehicle allowance for Fleet Worker | C35: Marden Jacob Associates, Review of ancillary network services: CitiPower, Powercor, United Energy, Jemena and AusNet, Advice to the Australian Energy Regulator, 30 Jun 2020 | G35: 20 | H35: =G35*(1+'Input|Escalations'!E16) -> 20.17211704 | I35: =H35*(1+'Input|Escalations'!F16) -> 20.8777969 | J35: =I35*(1+'Input|Escalations'!G16) -> 22.51290878 | K35: =J35*(1+'Input|Escalations'!H16) -> 23.42512909

Sheet Calc|Labour Rates
B1: =IFERROR(Index!B1,"") -> JEN 2024-25 - Labour Rates | C1: Key: | D1: Input | G1: Sheet Validation | H1: NA
B2: =IFERROR(MID(CELL("filename",A1),FIND("]",CELL("filename",A1))+1,255),"") -> Calc|Labour Rates | D2: Formula
A5: 6.1 | B5: ="Labour Rates ($" & 'Input|Setup'!E7 & ")" -> Labour Rates ($2024-25) | G5: ="6.2 Labour Rates Build up, $'s ($2024-25)" -> 6.2 Labour Rates Build up, $'s ($2024-25) | I5: =IFERROR("9.2 Year 1 labour rates build up, $'s ($"&#REF!&")","") ->  | J5: =IFERROR("9.2 Year 1 labour rates build up, $'s ($"&#REF!&")","") ->  | K5: =IFERROR("9.2 Year 1 labour rates build up, $'s ($"&#REF!&")","") ->  | L5: =IFERROR("9.2 Year 1 labour rates build up, $'s ($"&#REF!&")","") ->  | M5: =IFERROR("9.2 Year 1 labour rates build up, $'s ($"&#REF!&")","") -> 
B7: ='Input|Labour Rates'!B7 -> Labour category | C7: ='Input|Labour Rates'!C7 -> Hours | D7: ="Base labour rate" -> Base labour rate | E7: TOTAL LABOUR RATE (incl. On Costs & Overheads) | G7: BASE LABOUR RATE ($/hour) | H7: On costs | I7: STANDARD LABOUR RATE (EXCL OVERHEADS) | J7: Overhead | K7: STANDARD LABOUR RATE (INCL OVERHEADS) | L7: Wage Measure Stickiness | M7: Vehicle and Other costs
A8: 1 | B8: Administrative Officer | C8: =IF(ISBLANK('Input|Labour Rates'!C8),"",'Input|Labour Rates'!C8) -> Business hours | D8: ='MJ- hays categories_Rates'!E8*10^3 -> 90000 | E8: =G8+H8+J8+L8+M8 -> 109.5751337 | G8: =D8/'Input|Labour Rates'!$C$28/'Input|Labour Rates'!$C$29 -> 45.42426261 | H8: =IFERROR(G8*('Input|Labour Rates'!E8),"") -> 20.96245485 | I8: =SUM(G8:H8) -> 66.38671747 | J8: =IFERROR(I8*'Input|Labour Rates'!F8,0) -> 40.51585204 | K8: =SUM(I8:J8) -> 106.9025695 | L8: =K8*'Input|Labour Rates'!$C$30 -> 2.672564238
A9: =A8+1 -> 2 | B9: Field Worker | C9: =IF(ISBLANK('Input|Labour Rates'!C9),"",'Input|Labour Rates'!C9) -> Business hours | D9: =G9*'Input|Labour Rates'!$C$28*'Input|Labour Rates'!$C$29 -> 135700.5344 | E9: 192.1121065 | G9: =G18*'Input|Escalations'!$H$17*'Input|Escalations'!$H$25 -> 68.48996344 | H9: =IFERROR(G9*('Input|Labour Rates'!E9),0) -> 33.7100004 | I9: 102.1999638 | J9: =IFERROR(I9*'Input|Labour Rates'!F9,0) -> 62.37269701 | K9: 164.5726608 | L9: =K9*'Input|Labour Rates'!$C$30 -> 4.114316521 | M9: ='Input|Indirect Cost Rates'!$K$35 -> 23.42512909
A10: 3 | B10: Technical Specialist | C10: =IF(ISBLANK('Input|Labour Rates'!C10),"",'Input|Labour Rates'!C10) -> Business hours | D10: =G10*'Input|Labour Rates'!$C$28*'Input|Labour Rates'!$C$29 -> 147935.8284 | E10: 204.9009218 | G10: =G19*'Input|Escalations'!$H$17*'Input|Escalations'!$H$25 -> 74.66528801 | H10: =IFERROR(G10*('Input|Labour Rates'!E10),0) -> 35.2828523 | I10: 109.9481403 | J10: =IFERROR(I10*'Input|Labour Rates'!F10,0) -> 67.10141358 | K10: 177.0495539 | L10: =K10*'Input|Labour Rates'!$C$30 -> 4.426238847 | M10: ='Input|Indirect Cost Rates'!$K$35 -> 23.42512909
A11: 4 | B11: Engineer | C11: =IF(ISBLANK('Input|Labour Rates'!C11),"",'Input|Labour Rates'!C11) -> Business hours | D11: ='MJ- hays categories_Rates'!E6*10^3 -> 200000 | E11: 245.3439368 | G11: =D11/'Input|Labour Rates'!$C$28/'Input|Labour Rates'!$C$29 -> 100.9428058 | H11: =IFERROR(G11*('Input|Labour Rates'!E11),0) -> 47.70021255 | I11: 148.6430184 | J11: =IFERROR(I11*'Input|Labour Rates'!F11,0) -> 90.71692002 | K11: 239.3599384 | L11: =K11*'Input|Labour Rates'!$C$30 -> 5.98399846
A12: 5 | B12: Senior Engineer* | C12: =IF(ISBLANK('Input|Labour Rates'!C12),"",'Input|Labour Rates'!C12) -> Business hours | D12: =D11*1.2 -> 240000 | E12: 294.4127242 | G12: =D12/'Input|Labour Rates'!$C$28/'Input|Labour Rates'!$C$29 -> 121.131367 | H12: =IFERROR(G12*('Input|Labour Rates'!E12),0) -> 57.24025506 | I12: 178.371622 | J12: =IFERROR(I12*'Input|Labour Rates'!F12,0) -> 108.860304 | K12: 287.2319261 | L12: =K12*'Input|Labour Rates'!$C$30 -> 7.180798151
A13: 6 | B13: Field Worker | C13: =IF(ISBLANK('Input|Labour Rates'!C14),"",'Input|Labour Rates'!C14) -> After Hours | D13: =((((E9*1.75)-M13)/((1+'Input|Labour Rates'!F14)*(1+'Input|Labour Rates'!C30)))/(1+'Input|Labour Rates'!E14))*'Input|Labour Rates'!$C$28*'Input|Labour Rates'!$C$29 -> 314646.8499 | E13: 336.1961863 | G13: =D13/'Input|Labour Rates'!$C$28/'Input|Labour Rates'!$C$29 -> 158.8066793 | H13: =IFERROR(G13*('Input|Labour Rates'!E14),0) -> 30.68744305 | I13: 189.4941224 | J13: =IFERROR(I13*'Input|Labour Rates'!F14,0) -> 115.6483724 | K13: 305.1424948 | L13: =K13*'Input|Labour Rates'!$C$30 -> 7.628562371 | M13: ='Input|Indirect Cost Rates'!$K$35 -> 23.42512909
A14: 7
B15: *Used the AER's approach and applied a 20% uplift for engineer salary
B17: Labour category | D17: BASE LABOUR RATE ($2022-23) | G17: BASE LABOUR RATE ($/hour) ($2022-23)
B18: Field Worker | D18: ='MJ- hays categories_Rates'!E14*10^3 -> 122000 | G18: =D18/'Input|Labour Rates'!$C$28/'Input|Labour Rates'!$C$29 -> 61.57511154
B19: Technical Specialist | D19: ='MJ- hays categories_Rates'!E15*10^3 -> 133000 | G19: =D19/'Input|Labour Rates'!$C$28/'Input|Labour Rates'!$C$29 -> 67.12696586

Sheet Output|Labour Rates
B1: =Index!B1 -> JEN 2024-25 - Labour Rates | E1: Key: | F1: Input | H1: Sheet Validation | I1: NA
B2: =MID(CELL("filename",A1),FIND("]",CELL("filename",A1))+1,255) -> Output|Labour Rates | F2: Formula
B4: 1.1 Labour Rates for 2024-25
B6: Labour category | C6: Hours [List] | D6: Labour Rate $2024-25 | E6: AER Approved Labour Rate $2024-25
A7: 1 | B7: ='Input|Labour Rates'!B8 -> Administrative Officer | C7: ='Input|Labour Rates'!C8 -> Business hours | D7: ='Calc|Labour Rates'!E8 -> 109.5751337 | E7: 109.26 | F7: =D7/E7-1 -> 0.002884255404
A8: 2 | B8: ='Input|Labour Rates'!B9 -> Field Worker | C8: ='Input|Labour Rates'!C9 -> Business hours | D8: ='Calc|Labour Rates'!E9 -> 192.1121065 | E8: 186.06 | F8: 0.03252771393
A9: 3 | B9: ='Input|Labour Rates'!B10 -> Technical Specialist | C9: ='Input|Labour Rates'!C10 -> Business hours | D9: ='Calc|Labour Rates'!E10 -> 204.9009218 | E9: 196.96 | F9: 0.04031743416
A10: 4 | B10: ='Input|Labour Rates'!B11 -> Engineer | C10: ='Input|Labour Rates'!C11 -> Business hours | D10: ='Calc|Labour Rates'!E11 -> 245.3439368 | E10: 181.43 | F10: 0.3522787678
A11: 5 | B11: ='Input|Labour Rates'!B12 -> Senior Engineer | C11: ='Input|Labour Rates'!C12 -> Business hours | D11: ='Calc|Labour Rates'!E12 -> 294.4127242 | E11: 237.25 | F11: 0.2409387743
A12: 6 | B12: ='Input|Labour Rates'!B14 -> Field Worker* | C12: ='Input|Labour Rates'!C14 -> After Hours | D12: ='Calc|Labour Rates'!E13 -> 336.1961863 | E12: 283.18 | F12: 0.1872172692
A13: 7

Sheet MJ- hays categories_Rates
A1: Hays categories included in Marsden Jacob analysis - Melbourne ($'000 pa)
F3: Source
A4: Hays 2024-25 salary guide Vic Melbourne ($'000 pa) | F4: Hays Salary Guide FY24-25
A5: Energy Sector | B5: Category | C5: Title | D5: Low | E5: High
A6: Engineer | B6: Energy-Design Engineering | C6: Power systems engineer | D6: 120 | E6: 200 | F6: Power systems engineer
A7: Senior Engineer | B7: Energy-Design Engineering | C7: Power systems engineer | D7: 170 | E7: 200 | F7: uplift by 20%
A8: Admin | B8: Office Support | C8: Project coordinator | D8: 75 | E8: 90
A12: Hays 2022-23 salary guide Vic Melbourne ($'000 pa) | F12: Hays Salary Guide FY22-23
A13: Energy Sector | B13: Category | C13: Title | D13: Low | E13: High
A14: Field worker | B14: Energy O&M | C14: Electrician | D14: 92 | E14: 122
A15: Techical Specialist | B15: Energy Project Development | C15: Planner/Scheduler | D15: 107 | E15: 133

Sheet Model Validation
B1: =Index!B1 -> JEN 2024-25 - Labour Rates
B2: =MID(CELL("filename",A1),FIND("]",CELL("filename",A1))+1,255) -> Model Validation
B4: Overall Model Check | C4: =IF(SUM(C9:C13)=0,0,1) -> 0
B6: =Index!B7 -> Worksheet name
B8: =Index!B9 -> Output|Labour Rates
B9: =Index!B10 -> Input | Setup | C9: ='Input|Labour Rates'!G1 -> 0
B10: =Index!B11 -> Input|Labour Rates | C10: ='Input|Indirect Cost Rates'!G1 -> NA
B11: =Index!B12 -> Input|Escalations | C11: ='Input|Escalations'!G1 -> 0
B12: =Index!B13 -> Input|Indirect Cost Rates | C12: ='Calc|Labour Rates'!H1 -> NA
B13: =Index!B14 -> Calc|Labour Rates | C13: ='Output|Labour Rates'!I1 -> NA
B14: =Index!B15 -> Model Validation | C14: NA
B16: =B8 -> Output|Labour Rates
B17: =Index!$B$21 -> 1.1 Labour Rates for 2024-25
B19: =B9 -> Input | Setup
B20: =Index!B22 -> 2.1 Years setup | C20: =SUM('Input|Labour Rates'!$I$8:$I$18) -> 0
B21: =Index!B23 -> 2.2 Current regulatory period
B22: =Index!B24 -> 2.3 Forecast regulatory period
B23: =Index!B25 -> 2.4 Hours
B24: =Index!B26 -> 
B25: =Index!B27 -> 2.5 Labour type
B26: =Index!B28 -> 2.6 Expense Type
B27: =Index!B29 -> 2.7 Control Mechanism
B29: =B10 -> Input|Labour Rates
B30: =Index!B30 -> 3.1 Labour Rates | C30: NA
B31: =Index!B31 -> 3.2 Notes and sources | C31: NA
B32: =Index!B32 -> 3.3 Assumptions
B33: =Index!B33 -> 3.4 Notes and sources
B35: =B11 -> Input|Escalations
B36: =Index!B34 -> 4.1 Escalation setup | C36: NA
B37: =Index!B35 -> 4.2 Inflation
B39: =B12 -> Input|Indirect Cost Rates
B40: =Index!B37 -> 5.1 On costs | C40: NA
B41: =Index!B38 -> 5.2 Overheads
B42: =Index!B39 -> 5.3 Vehicle Allowance
B44: =B13 -> Calc|Labour Rates
B45: =Index!B40 -> 6.1 Labour Rates ($2024-25) | C45: NA
